fUST/lending_fUST_20250819
["ID","MTS","AMOUNT","RATE_DAILY","PERIOD"]
[380095434,1755539464068,-2000.0,0.00021841,2]
[380095435,1755539464078,-12909.21180666,0.00021917,2]
[380095436,1755539464091,-137090.78819334,0.00021917,2]
[380095437,1755539464101,-83474.45472553,0.00021917,2]
[380095438,1755539464111,-480.0,0.00021917,2]
[380095439,1755539464121,-480.0,0.00021917,2]
[380095440,1755539464131,-480.0,0.00021917,2]
[380095441,1755539464141,-1068.83,0.00021917,2]
[380095442,1755539464150,-437.94,0.00021917,2]
[380095443,1755539464160,-305.88,0.00021917,2]
[380095444,1755539464169,-480.0,0.00021917,2]
[380095445,1755539464179,-480.0,0.00021917,2]
[380095446,1755539464188,-566.82692408,0.00021917,2]
[380095447,1755539464198,-520.95,0.00021917,2]
[380095448,1755539464207,-480.0,0.00021917,2]
[380095449,1755539464218,-526.13,0.00021917,2]
[380095450,1755539464227,-480.0,0.00021917,2]
[380095451,1755539464237,-412.5,0.00021917,2]
[380095452,1755539464247,-876.66,0.00021917,2]
[380095453,1755539464257,-805.42,0.00021917,2]
[380095454,1755539464268,-564.37,0.00021917,2]
[380095455,1755539464277,-482.48715926,0.00021917,2]
[380095456,1755539464287,-480.0,0.00021917,2]
[380095457,1755539464297,-480.0,0.00021917,2]
[380095458,1755539464306,-678.73,0.00021917,2]
[380095459,1755539464317,-695.93,0.00021917,2]
[380095460,1755539464326,-2267.11,0.00021917,2]
[380095461,1755539464336,-518.32,0.00021917,2]
[380095462,1755539464346,-480.0,0.00021917,2]
[380095463,1755539464355,-480.0,0.00021917,2]
[380095464,1755539464365,-686.01,0.00021917,2]
[380095465,1755539464374,-974.36,0.00021917,2]
[380095466,1755539464385,-872.08,0.00021917,2]
[380095467,1755539464395,-480.0,0.00021917,2]
[380095468,1755539464405,-480.0,0.00021917,2]
[380095469,1755539464415,-2823.25,0.00021917,2]
[380095470,1755539464425,-480.0,0.00021917,2]
[380095471,1755539464435,-915.43,0.00021917,2]
[380095472,1755539464444,-1152.68,0.00021917,2]
[380095473,1755539464454,-655.16,0.00021917,2]
[380095474,1755539464464,-1055.91,0.00021917,2]
[380095475,1755539464478,-792.03,0.00021917,2]
[380095476,1755539464487,-480.0,0.00021917,2]
[380095477,1755539464497,-480.0,0.00021917,2]
[380095478,1755539464507,-480.0,0.00021917,2]
[380095479,1755539464517,-598.8,0.00021917,2]
[380095480,1755539464526,-1172.17,0.00021917,2]
[380095481,1755539464536,-1991.57,0.00021917,2]
[380095482,1755539464545,-480.0,0.00021917,2]
[380095483,1755539464555,-1790.87,0.00021917,2]
[380095484,1755539464564,-480.0,0.00021917,2]
[380095485,1755539464573,-480.0,0.00021917,2]
[380095486,1755539464582,-686.72,0.00021917,2]
[380095487,1755539464592,-1539.45,0.00021917,2]
[380095488,1755539464602,-480.0,0.00021917,2]
[380095489,1755539464612,-480.0,0.00021917,2]
[380095490,1755539464622,-480.0,0.00021917,2]
[380095491,1755539464632,-322.72648734,0.00021917,2]
[380095492,1755539464642,-4069.45,0.00021917,2]
[380095493,1755539464652,-622.36,0.00021917,2]
[380095494,1755539464662,-480.0,0.00021917,2]
[380095495,1755539464672,-480.0,0.00021917,2]
[380095496,1755539464681,-1146.13,0.00021917,2]
[380095497,1755539464690,-675.72,0.00021917,2]
[380095498,1755539464699,-480.0,0.00021917,2]
[380095499,1755539464711,-812.94,0.00021917,2]
[380095500,1755539464721,-732.7,0.00021917,2]
[380095501,1755539464731,-500.0,0.00021918,2]
[380095502,1755539464740,-228.757632,0.00021918,2]
[380095503,1755539464749,-300.0,0.00021918,2]
[380095504,1755539464759,-5995.55539884,0.00021978,2]
[380095505,1755539464768,-3755.42,0.00022,7]
[380095506,1755539464777,-1302.87,0.00022,7]
[380095507,1755539464786,-183.0,0.00022,2]
[380095508,1755539464795,-2310.41810318,0.00022001,5]
[380095509,1755539464804,-300.12,0.000221,2]
[380095510,1755539464814,-157.1842415,0.0002211,2]
[380095511,1755539464823,-160.7608968,0.0002211,2]
[380095512,1755539464833,-153.0,0.0002211,2]
[380095514,1755539464842,-153.0,0.0002211,2]
[380095515,1755539464851,-1169.7161226,0.0002211,2]
[380095516,1755539464861,-153.0,0.0002211,2]
[380095517,1755539464871,-225.71187628,0.00022164,6]
[380095518,1755539464880,-1630.0914912,0.00022191,2]
[380095519,1755539464889,-480.0,0.00022191,2]
[380095520,1755539464899,-480.0,0.00022191,2]
[380095521,1755539464908,-480.0,0.00022191,2]
[380095522,1755539464918,-1068.83,0.00022191,2]
[380095523,1755539464927,-480.0,0.00022191,2]
[380095524,1755539464936,-480.0,0.00022191,2]
[380095525,1755539464946,-520.95,0.00022191,2]
[380095526,1755539464955,-480.0,0.00022191,2]
[380095527,1755539464969,-526.13,0.00022191,2]
[380095528,1755539464979,-480.0,0.00022191,2]
[380095529,1755539464988,-876.66,0.00022191,2]
[380095530,1755539464997,-805.42,0.00022191,2]
[380095531,1755539465007,-564.37,0.00022191,2]
[380095532,1755539465016,-480.0,0.00022191,2]
[380095533,1755539465025,-480.0,0.00022191,2]
[380095534,1755539465036,-678.73,0.00022191,2]
[380095535,1755539465047,-695.93,0.00022191,2]
[380095536,1755539465056,-2267.11,0.00022191,2]
[380095537,1755539465066,-518.32,0.00022191,2]
[380095538,1755539465076,-480.0,0.00022191,2]
[380095539,1755539465086,-480.0,0.00022191,2]
[380095540,1755539465096,-686.01,0.00022191,2]
[380095541,1755539465105,-974.36,0.00022191,2]
[380095542,1755539465115,-872.08,0.00022191,2]
[380095543,1755539465124,-470.814002,0.00022191,7]
[380095544,1755539465135,-480.0,0.00022191,2]
[380095545,1755539465144,-470.814002,0.00022191,7]
[380095546,1755539465153,-480.0,0.00022191,2]
[380095547,1755539465162,-2823.25,0.00022191,2]
[380095548,1755539465172,-385.46198753,0.00022191,2]
[380095549,1755539465181,-151.0,0.00022191,7]
[380095550,1755539465190,-915.43,0.00022191,2]
[380095551,1755539465200,-1152.68,0.00022191,2]
[380095552,1755539465210,-151.0,0.00022191,7]
[380095553,1755539465219,-655.16,0.00022191,2]
[380095554,1755539465228,-1055.91,0.00022191,2]
[380095555,1755539465237,-792.03,0.00022191,2]
[380095556,1755539465247,-480.0,0.00022191,2]
[380095557,1755539465256,-480.0,0.00022191,2]
[380095558,1755539465265,-480.0,0.00022191,2]
[380095559,1755539465275,-598.8,0.00022191,2]
[380095560,1755539465285,-1172.17,0.00022191,2]
[380095561,1755539465295,-1991.57,0.00022191,2]
[380095562,1755539465306,-480.0,0.00022191,2]
[380095563,1755539465316,-353.305775,0.00022191,7]
[380095564,1755539465325,-1790.87,0.00022191,2]
[380095565,1755539465335,-353.305775,0.00022191,7]
[380095566,1755539465344,-261.500499,0.00022191,7]
[380095567,1755539465354,-261.500499,0.00022191,7]
[380095568,1755539465363,-480.0,0.00022191,2]
[380095569,1755539465373,-480.0,0.00022191,2]
[380095570,1755539465383,-686.72,0.00022191,2]
[380095571,1755539465392,-1539.45,0.00022191,2]
[380095572,1755539465401,-151.0,0.00022191,7]
[380095573,1755539465410,-480.0,0.00022191,2]
[380095574,1755539465420,-151.0,0.00022191,7]
[380095575,1755539465429,-480.0,0.00022191,2]
[380095576,1755539465438,-218.27639,0.00022191,7]
[380095577,1755539465448,-480.0,0.00022191,2]
[380095578,1755539465458,-151.0,0.00022191,7]
[380095579,1755539465468,-4069.45,0.00022191,2]
[380095580,1755539465480,-622.36,0.00022191,2]
[380095581,1755539465490,-480.0,0.00022191,2]
[380095582,1755539465499,-480.0,0.00022191,2]
[380095583,1755539465508,-1146.13,0.00022191,2]
[380095584,1755539465519,-675.72,0.00022191,2]
[380095585,1755539465528,-480.0,0.00022191,2]
[380095586,1755539465538,-812.94,0.00022191,2]
[380095587,1755539465548,-732.7,0.00022191,2]
[380095588,1755539465559,-500.0,0.00022192,2]
[380095589,1755539465569,-10169.02,0.000222,7]
[380095590,1755539465578,-12683.78573522,0.000222,7]
[380095591,1755539465587,-215.75323784,0.000222,7]
[380095592,1755539465596,-375.82681177,0.000222,7]
[380095593,1755539465605,-160.0,0.000222,7]
[380095594,1755539465614,-417.15472785,0.000222,7]
[380095595,1755539465623,-528.58062739,0.000222,7]
[380095596,1755539465632,-360.0,0.00022217,2]
[380095597,1755539465642,-21725.92,0.000223,2]
[380095598,1755539465651,-2508.04807521,0.00022389,2]
[380095599,1755539465661,-1004.90182795,0.00022389,2]
[380095600,1755539465671,-5995.55539884,0.00022394,2]
[380095601,1755539465680,-800.0,0.000224,3]
[380095602,1755539465689,-2408.86657903,0.00022456,2]
[380095603,1755539465699,-480.0,0.00022465,2]
[380095604,1755539465709,-480.0,0.00022465,2]
[380095605,1755539465718,-480.0,0.00022465,2]
[380095606,1755539465728,-1068.83,0.00022465,2]
[380095607,1755539465737,-480.0,0.00022465,2]
[380095608,1755539465746,-480.0,0.00022465,2]
[380095609,1755539465755,-520.95,0.00022465,2]
[380095610,1755539465764,-480.0,0.00022465,2]
[380095611,1755539465773,-526.13,0.00022465,2]
[380095612,1755539465783,-187.83,0.00022465,2]
[380095613,1755539465792,-876.66,0.00022465,2]
[380095614,1755539465801,-805.42,0.00022465,2]
[380095615,1755539465811,-564.37,0.00022465,2]
[380095616,1755539465820,-480.0,0.00022465,2]
[380095617,1755539465829,-480.0,0.00022465,2]
[380095618,1755539465838,-678.73,0.00022465,2]
[380095619,1755539465847,-695.93,0.00022465,2]
[380095620,1755539465856,-2267.11,0.00022465,2]
[380095621,1755539465865,-518.32,0.00022465,2]
[380095622,1755539465874,-480.0,0.00022465,2]
[380095623,1755539465883,-480.0,0.00022465,2]
[380095624,1755539465892,-686.01,0.00022465,2]
[380095625,1755539465902,-974.36,0.00022465,2]
[380095626,1755539465912,-872.08,0.00022465,2]
[380095627,1755539465923,-480.0,0.00022465,2]
[380095628,1755539465934,-480.0,0.00022465,2]
[380095629,1755539465944,-2823.25,0.00022465,2]
[380095630,1755539465954,-915.43,0.00022465,2]
[380095631,1755539465964,-1152.68,0.00022465,2]
[380095632,1755539465973,-655.16,0.00022465,2]
[380095633,1755539465983,-1055.91,0.00022465,2]
[380095634,1755539465992,-792.03,0.00022465,2]
[380095635,1755539466003,-480.0,0.00022465,2]
[380095636,1755539466013,-480.0,0.00022465,2]
[380095637,1755539466023,-385.44,0.00022465,2]
[380095638,1755539466034,-598.8,0.00022465,2]
[380095639,1755539466044,-1172.17,0.00022465,2]
[380095640,1755539466054,-1991.57,0.00022465,2]
[380095641,1755539466063,-480.0,0.00022465,2]
[380095642,1755539466072,-1790.87,0.00022465,2]
[380095643,1755539466082,-480.0,0.00022465,2]
[380095644,1755539466092,-480.0,0.00022465,2]
[380095645,1755539466103,-686.72,0.00022465,2]
[380095646,1755539466112,-1539.45,0.00022465,2]
[380095647,1755539466122,-480.0,0.00022465,2]
[380095648,1755539466132,-480.0,0.00022465,2]
[380095649,1755539466142,-480.0,0.00022465,2]
[380095650,1755539466151,-4069.45,0.00022465,2]
[380095651,1755539466161,-622.36,0.00022465,2]
[380095652,1755539466170,-480.0,0.00022465,2]
[380095653,1755539466179,-480.0,0.00022465,2]
[380095654,1755539466188,-1146.13,0.00022465,2]
[380095655,1755539466198,-675.72,0.00022465,2]
[380095656,1755539466207,-480.0,0.00022465,2]
[380095657,1755539466218,-812.94,0.00022465,2]
[380095658,1755539466227,-732.7,0.00022465,2]
[380095659,1755539466236,-500.0,0.00022466,2]
[380095660,1755539466245,-500.0,0.00022473,2]
[380095661,1755539466255,-500.0,0.00022473,2]
[380095662,1755539466264,-500.0,0.00022473,2]
[380095663,1755539466273,-500.0,0.00022473,2]
[380095664,1755539466282,-500.0,0.00022473,2]
[380095665,1755539466291,-500.0,0.00022473,2]
[380095666,1755539466301,-500.0,0.00022473,2]
[380095667,1755539466310,-500.0,0.00022473,2]
[380095668,1755539466319,-158.65429511,0.00022473,2]
[380095669,1755539466328,-258.76342241,0.00022473,2]
[380095670,1755539466337,-320.718355,0.00022473,2]
[380095671,1755539466346,-500.0,0.00022473,2]
[380095672,1755539466355,-500.0,0.00022473,2]
[380095673,1755539466365,-500.0,0.00022473,2]
[380095674,1755539466374,-500.0,0.00022473,2]
[380095675,1755539466384,-500.0,0.00022473,2]
[380095676,1755539466393,-158.65256514,0.00022473,2]
[380095677,1755539466403,-500.0,0.00022473,2]
[380095678,1755539466413,-500.0,0.00022473,2]
[380095679,1755539466422,-500.0,0.00022473,2]
[380095680,1755539466432,-500.0,0.00022473,2]
[380095681,1755539466442,-500.0,0.00022473,2]
[380095682,1755539466451,-500.0,0.00022473,2]
[380095683,1755539466463,-622.24374581,0.00022473,2]
[380095684,1755539466475,-500.45548213,0.00022473,2]
[380095685,1755539466484,-154.60144296,0.00022473,2]
[380095686,1755539466494,-500.0,0.00022473,2]
[380095687,1755539466503,-500.0,0.00022473,2]
[380095688,1755539466515,-501.32411645,0.00022473,2]
[380095689,1755539466524,-584.47743907,0.00022473,2]
[380095690,1755539466533,-500.0,0.00022473,2]
[380095691,1755539466646,-500.0,0.00022473,2]
[380095692,1755539466656,-500.0,0.00022473,2]
[380095693,1755539466667,-500.0,0.00022473,2]
[380095694,1755539466678,-500.14393027,0.00022473,2]
[380095695,1755539466687,-500.0,0.00022473,2]
[380095696,1755539466697,-500.0,0.00022473,2]
[380095697,1755539466707,-500.0,0.00022473,2]
[380095698,1755539466717,-500.0,0.00022473,2]
[380095699,1755539466726,-500.0,0.00022473,2]
[380095700,1755539466735,-162.47279025,0.00022473,2]
[380095701,1755539466745,-195.74148035,0.00022473,2]
[380095702,1755539466754,-500.0,0.00022473,2]
[380095703,1755539466763,-500.0,0.00022473,2]
[380095704,1755539466772,-500.0,0.00022473,2]
[380095705,1755539466783,-3104.3173549,0.00022487,2]
[380095706,1755539466792,-1304.39,0.00022495,2]
[380095707,1755539466802,-16200.10868958,0.000225,2]
[380095708,1755539466811,-62123.20974033,0.000225,2]
[380095709,1755539466820,-470.814002,0.000225,7]
[380095710,1755539466830,-470.814002,0.000225,7]
[380095711,1755539466838,-151.0,0.000225,7]
[380095712,1755539466846,-183.814978,0.000225,7]
[380095713,1755539466854,-353.305775,0.000225,7]
[380095714,1755539466862,-353.305775,0.000225,7]
[380095715,1755539466869,-261.500499,0.000225,7]
[380095716,1755539466876,-261.500499,0.000225,7]
[380095717,1755539466884,-292.369802,0.000225,7]
[380095718,1755539466892,-151.0,0.000225,7]
[380095719,1755539466900,-149.888905,0.0002252,2]
[380095720,1755539466907,-166.57,0.00022574,2]
[380095721,1755539466915,-587.0,0.00022662,2]
[380095722,1755539466923,-198.17598955,0.00022739,2]
[380095723,1755539466930,-480.0,0.00022739,2]
[380095724,1755539466939,-480.0,0.00022739,2]
[380095725,1755539466947,-1068.83,0.00022739,2]
[380095726,1755539466955,-480.0,0.00022739,2]
[380095727,1755539466966,-480.0,0.00022739,2]
[380095728,1755539466975,-520.95,0.00022739,2]
[380095729,1755539466984,-480.0,0.00022739,2]
[380095730,1755539466994,-526.13,0.00022739,2]
[380095731,1755539467003,-876.66,0.00022739,2]
[380095732,1755539467012,-805.42,0.00022739,2]
[380095733,1755539467022,-564.37,0.00022739,2]
[380095734,1755539467031,-480.0,0.00022739,2]
[380095735,1755539467040,-480.0,0.00022739,2]
[380095736,1755539467051,-678.73,0.00022739,2]
[380095737,1755539467060,-695.93,0.00022739,2]
[380095738,1755539467069,-2267.11,0.00022739,2]
[380095739,1755539467079,-518.32,0.00022739,2]
[380095740,1755539467088,-480.0,0.00022739,2]
[380095741,1755539467097,-480.0,0.00022739,2]
[380095742,1755539467106,-686.01,0.00022739,2]
[380095743,1755539467115,-974.36,0.00022739,2]
[380095744,1755539467125,-872.08,0.00022739,2]
[380095745,1755539467134,-480.0,0.00022739,2]
[380095746,1755539467143,-480.0,0.00022739,2]
[380095747,1755539467153,-2823.25,0.00022739,2]
[380095748,1755539467162,-915.43,0.00022739,2]
[380095749,1755539467171,-1152.68,0.00022739,2]
[380095750,1755539467180,-655.16,0.00022739,2]
[380095751,1755539467190,-1055.91,0.00022739,2]
[380095752,1755539467199,-792.03,0.00022739,2]
[380095753,1755539467209,-480.0,0.00022739,2]
[380095754,1755539467221,-480.0,0.00022739,2]
[380095755,1755539467230,-598.8,0.00022739,2]
[380095756,1755539467241,-1172.17,0.00022739,2]
[380095757,1755539467251,-1991.57,0.00022739,2]
[380095758,1755539467260,-480.0,0.00022739,2]
[380095759,1755539467269,-1790.87,0.00022739,2]
[380095760,1755539467279,-480.0,0.00022739,2]
[380095761,1755539467289,-480.0,0.00022739,2]
[380095762,1755539467299,-686.72,0.00022739,2]
[380095763,1755539467308,-1539.45,0.00022739,2]
[380095764,1755539467318,-611.47,0.00022739,2]
[380095765,1755539467328,-480.0,0.00022739,2]
[380095766,1755539467338,-480.0,0.00022739,2]
[380095767,1755539467347,-4069.45,0.00022739,2]
[380095768,1755539467357,-622.36,0.00022739,2]
[380095769,1755539467366,-480.0,0.00022739,2]
[380095770,1755539467376,-480.0,0.00022739,2]
[380095771,1755539467386,-1146.13,0.00022739,2]
[380095772,1755539467395,-675.72,0.00022739,2]
[380095773,1755539467404,-480.0,0.00022739,2]
[380095774,1755539467413,-812.94,0.00022739,2]
[380095775,1755539467422,-732.7,0.00022739,2]
[380095776,1755539467431,-500.0,0.0002274,2]
[380095777,1755539467441,-460.0,0.00022765,2]
[380095778,1755539467450,-1700.0,0.00022769,2]
[380095779,1755539467460,-192.0,0.00022776,2]
[380095780,1755539467474,-5995.55539884,0.00022809,2]
[380095781,1755539467483,-2351.0,0.00022882,2]
[380095782,1755539467493,-160.8129855,0.00022959,2]
[380095783,1755539467503,-580.575816,0.00022959,2]
[380095784,1755539467512,-160.8129855,0.00022959,2]
[380095785,1755539467522,-160.8129855,0.00022959,2]
[380095786,1755539467532,-161.04843478,0.00022986,2]
[380095787,1755539467541,-9236.44589837,0.00023,2]
[380095788,1755539467551,-502.93,0.00023,7]
[380095789,1755539467560,-160.0,0.00023,3]
[380095790,1755539467570,-160.0,0.00023,2]
[380095791,1755539467579,-160.0,0.00023,3]
[380095792,1755539467588,-232.18122251,0.00023,3]
[380095793,1755539467598,-160.0,0.00023,3]
[380095794,1755539467607,-160.0,0.00023,3]
[380095795,1755539467616,-160.0,0.00023,3]
[380095796,1755539467625,-168.0,0.00023,7]
[380095797,1755539467636,-160.0,0.00023,3]
[380095798,1755539467645,-843.81736472,0.00023,3]
[380095799,1755539467655,-160.0,0.00023,3]
[380095800,1755539467664,-216.85420361,0.00023,3]
[380095801,1755539467673,-308.05540529,0.00023013,2]
[380095802,1755539467682,-480.0,0.00023013,2]
[380095803,1755539467691,-1068.83,0.00023013,2]
[380095804,1755539467701,-331.14368094,0.00023013,2]
[380095805,1755539467712,-480.0,0.00023013,2]
[380095806,1755539467721,-520.95,0.00023013,2]
[380095807,1755539467730,-480.0,0.00023013,2]
[380095808,1755539467740,-526.13,0.00023013,2]
[380095809,1755539467749,-876.66,0.00023013,2]
[380095810,1755539467758,-805.42,0.00023013,2]
[380095811,1755539467767,-564.37,0.00023013,2]
[380095812,1755539467777,-480.0,0.00023013,2]
[380095813,1755539467786,-383.48,0.00023013,2]
[380095814,1755539467795,-678.73,0.00023013,2]
[380095815,1755539467804,-695.93,0.00023013,2]
[380095816,1755539467813,-2267.11,0.00023013,2]
[380095817,1755539467823,-518.32,0.00023013,2]
[380095818,1755539467832,-480.0,0.00023013,2]
[380095819,1755539467841,-480.0,0.00023013,2]
[380095820,1755539467850,-686.01,0.00023013,2]
[380095821,1755539467859,-974.36,0.00023013,2]
[380095822,1755539467869,-872.08,0.00023013,2]
[380095823,1755539467878,-480.0,0.00023013,2]
[380095824,1755539467887,-480.0,0.00023013,2]
[380095825,1755539467896,-2823.25,0.00023013,2]
[380095826,1755539467906,-915.43,0.00023013,2]
[380095827,1755539467915,-1152.68,0.00023013,2]
[380095828,1755539467924,-655.16,0.00023013,2]
[380095829,1755539467934,-792.03,0.00023013,2]
[380095830,1755539467943,-1055.91,0.00023013,2]
[380095831,1755539467952,-620.60925268,0.00023013,2]
[380095832,1755539467962,-480.0,0.00023013,2]
[380095833,1755539467971,-598.8,0.00023013,2]
[380095834,1755539467980,-1991.57,0.00023013,2]
[380095835,1755539467990,-1172.17,0.00023013,2]
[380095836,1755539467999,-480.0,0.00023013,2]
[380095837,1755539468009,-1790.87,0.00023013,2]
[380095838,1755539468020,-480.0,0.00023013,2]
[380095839,1755539468030,-480.0,0.00023013,2]
[380095840,1755539468039,-686.72,0.00023013,2]
[380095841,1755539468049,-1539.45,0.00023013,2]
[380095842,1755539468058,-480.0,0.00023013,2]
[380095843,1755539468067,-480.0,0.00023013,2]
[380095844,1755539468076,-4069.45,0.00023013,2]
[380095845,1755539468086,-622.36,0.00023013,2]
[380095846,1755539468095,-480.0,0.00023013,2]
[380095847,1755539468104,-480.0,0.00023013,2]
[380095848,1755539468115,-1146.13,0.00023013,2]
[380095849,1755539468125,-675.72,0.00023013,2]
[380095850,1755539468134,-480.0,0.00023013,2]
[380095851,1755539468144,-812.94,0.00023013,2]
[380095852,1755539468154,-732.7,0.00023013,2]
[380095853,1755539468164,-492.0,0.00023014,2]
[380095854,1755539468173,-183.0,0.00023014,7]
[380095855,1755539468183,-1000.0,0.00023021,2]
[380095856,1755539468192,-854.05442532,0.00023021,2]
[380095857,1755539468201,-1000.0,0.00023021,2]
[380095858,1755539468211,-500.0,0.00023021,2]
[380095859,1755539468220,-500.0,0.00023021,2]
[380095860,1755539468230,-500.92785999,0.00023021,2]
[380095861,1755539468239,-500.0,0.00023021,2]
[380095862,1755539468248,-1000.0,0.00023021,2]
[380095863,1755539468257,-1000.0,0.00023021,2]
[380095864,1755539468266,-1000.0,0.00023021,2]
[380095865,1755539468276,-1000.0,0.00023021,2]
[380095866,1755539468286,-1000.0,0.00023021,2]
[380095867,1755539468295,-500.0,0.00023021,2]
[380095868,1755539468304,-500.0,0.00023021,2]
[380095869,1755539468314,-215.33119667,0.00023021,2]
[380095870,1755539468324,-500.0,0.00023021,2]
[380095871,1755539468334,-278.9250927,0.00023021,2]
[380095872,1755539468343,-1000.0,0.00023021,2]
[380095873,1755539468352,-1000.68247824,0.00023021,2]
[380095874,1755539468363,-408.0443621,0.00023021,2]
[380095875,1755539468372,-500.0,0.00023021,2]
[380095876,1755539468382,-1047.24129116,0.00023021,2]
[380095877,1755539468393,-1000.0,0.00023021,2]
[380095878,1755539468402,-1000.0,0.00023021,2]
[380095879,1755539468412,-1000.0,0.00023021,2]
[380095880,1755539468422,-207.00955013,0.00023021,2]
[380095881,1755539468431,-1000.0,0.00023021,2]
[380095882,1755539468440,-161.04843478,0.00023096,2]
[380095883,1755539468450,-3755.42,0.000232,7]
[380095884,1755539468461,-1302.87,0.000232,7]
[380095885,1755539468473,-5995.55539884,0.00023225,2]
[380095886,1755539468482,-161.04843478,0.00023233,2]
[380095887,1755539468492,-480.0,0.00023287,2]
[380095888,1755539468501,-1068.83,0.00023287,2]
[380095889,1755539468511,-480.0,0.00023287,2]
[380095890,1755539468521,-520.95,0.00023287,2]
[380095891,1755539468530,-219.19361366,0.00023287,2]
[380095892,1755539468540,-526.13,0.00023287,2]
[380095893,1755539468549,-876.66,0.00023287,2]
[380095894,1755539468559,-805.42,0.00023287,2]
[380095895,1755539468568,-564.37,0.00023287,2]
[380095896,1755539468577,-480.0,0.00023287,2]
[380095897,1755539468586,-678.73,0.00023287,2]
[380095898,1755539468595,-695.93,0.00023287,2]
[380095899,1755539468605,-2267.11,0.00023287,2]
[380095900,1755539468614,-518.32,0.00023287,2]
[380095901,1755539468623,-480.0,0.00023287,2]
[380095902,1755539468632,-480.0,0.00023287,2]
[380095903,1755539468642,-686.01,0.00023287,2]
[380095904,1755539468651,-974.36,0.00023287,2]
[380095905,1755539468660,-872.08,0.00023287,2]
[380095906,1755539468669,-470.814002,0.00023287,7]
[380095907,1755539468679,-470.814002,0.00023287,7]
[380095908,1755539468688,-480.0,0.00023287,2]
[380095909,1755539468697,-588.32153224,0.00023287,2]
[380095910,1755539468707,-2823.25,0.00023287,2]
[380095911,1755539468718,-151.0,0.00023287,7]
[380095912,1755539468727,-915.43,0.00023287,2]
[380095913,1755539468736,-1152.68,0.00023287,2]
[380095914,1755539468746,-655.16,0.00023287,2]
[380095915,1755539468755,-792.03,0.00023287,2]
[380095916,1755539468766,-1055.91,0.00023287,2]
[380095917,1755539468776,-480.0,0.00023287,2]
[380095918,1755539468786,-598.8,0.00023287,2]
[380095919,1755539468795,-1172.17,0.00023287,2]
[380095920,1755539468805,-1991.57,0.00023287,2]
[380095921,1755539468814,-172.09586729,0.00023287,2]
[380095922,1755539468824,-353.305775,0.00023287,7]
[380095923,1755539468833,-1790.87,0.00023287,2]
[380095924,1755539468842,-353.305775,0.00023287,7]
[380095925,1755539468851,-261.500499,0.00023287,7]
[380095926,1755539468861,-261.500499,0.00023287,7]
[380095927,1755539468870,-480.0,0.00023287,2]
[380095928,1755539468880,-480.0,0.00023287,2]
[380095929,1755539468890,-686.72,0.00023287,2]
[380095930,1755539468900,-1539.45,0.00023287,2]
[380095931,1755539468909,-151.0,0.00023287,7]
[380095932,1755539468918,-480.0,0.00023287,2]
[380095933,1755539468928,-480.0,0.00023287,2]
[380095934,1755539468938,-4069.45,0.00023287,2]